bitfinex/quotes_ETHUSD_20250821
["timestamp","ask_amount","ask_price","bid_price","bid_amount"]
[1755787579416,0.02,4282.8,4280.7,25.61086453]
[1755787579600,0.02,4282.8,4280.7,25.78682357]
[1755787580926,0.0212,4280.8,4280.7,25.78682357]
[1755787581322,0.0212,4280.8,4280.7,19.17675704]
[1755787581629,0.0212,4280.8,4280.7,25.78482357]
[1755787582335,0.02,4282.8,4281.7,2.99552093]
[1755787582630,0.02,4282.8,4281.7,7.02855209]
[1755787582835,0.02,4282.8,4281.7,7.49425209]
[1755787583410,0.02,4282.8,4281.7,7.80605209]
[1755787583615,0.4537,4282.8,4281.7,7.02855209]
[1755787584840,0.02,4282.8,4281.7,7.80605209]
[1755787585339,0.02,4282.8,4281.7,7.80505209]
[1755787585641,0.02,4282.8,4281.7,10.14057302]
[1755787585841,0.02,4282.8,4281.7,13.14057302]
[1755787586335,0.02,4282.8,4281.7,10.33835209]
[1755787586700,0.02,4282.8,4281.7,6.06835209]
[1755787586901,0.02,4282.8,4281.7,6.36655209]
[1755787587103,0.4337,4282.5,4281.7,6.066]
[1755787587319,0.4337,4282.5,4281.7,1.797]
[1755787587604,0.02,4282.8,4281.7,6.066]
[1755787587805,0.4337,4282.4,4281.7,6.726]
[1755787588137,0.3034,4281.8,4281.7,1.797]
[1755787588334,0.3034,4281.8,4281.7,6.066]
[1755787588549,0.02,4281.8,4281.7,6.066]
[1755787588839,0.02,4281.8,4281.7,8.1101]
[1755787589836,0.02,4281.8,4281.7,13.44562093]
[1755787590307,0.02,4281.8,4281.7,13.44462093]
[1755787592210,0.02,4281.8,4281.7,9.17662093]
[1755787592405,0.02,4281.8,4281.7,15.91162093]
[1755787592629,0.02,4281.8,4281.7,16.02842093]
[1755787592955,0.002,4282.7,4282.6,2.99503012]
[1755787593245,0.02,4282.8,4282.7,8.46197559]
[1755787593411,0.02,4282.8,4282.7,9.23947559]
[1755787594317,0.002,4284.2,4283.6,5.99448501]
[1755787594506,0.002,4284.2,4283.6,23.08324338]
[1755787594706,0.002,4284.2,4283.6,23.66574338]
[1755787594909,0.002,4284.2,4283.6,26.02788301]
[1755787595513,0.002,4284.2,4283.6,26.20026924]
[1755787595713,0.002,4284.2,4283.7,3.66]
[1755787595941,0.02,4284.8,4284.7,2.99388568]
[1755787596126,0.02,4284.8,4284.7,20.86555837]
[1755787596327,0.02,4284.8,4284.7,7.65935584]
[1755787596542,0.02,4284.8,4284.7,12.36668568]
[1755787596807,0.02,4284.8,4284.7,12.05488568]
[1755787597424,0.02,4284.8,4284.7,12.17168568]
[1755787597625,0.02,4284.8,4284.7,5.456]
[1755787597826,0.295,4284.8,4284.7,1.796]
[1755787598060,0.7402,4284.8,4284.7,9.06]
[1755787598237,0.295,4284.8,4284.7,6.72]
[1755787598435,0.7402,4284.8,4284.7,6.72]
[1755787598818,0.7402,4284.8,4284.4,4.264]
[1755787599051,0.4452,4284.7,4284.4,4.264]
[1755787599262,0.2767,4284.5,4284.4,4.264]
[1755787599456,0.7202,4284.5,4284.1,4.263]
[1755787599660,0.4435,4284.4,4284.1,4.263]
[1755787599861,0.02,4284.8,4284.2,0.02334158]
[1755787600068,0.02,4284.8,4284.3,4.263]
[1755787600241,0.02,4284.8,4284.7,0.9513]
[1755787600445,0.02,4284.8,4284.7,12.36752453]
[1755787600644,0.02,4284.8,4284.7,12.34418568]
[1755787600966,0.02,4284.8,4284.7,14.29348043]
[1755787601772,0.022,4285.8,4285.7,2.99334111]
[1755787601932,0.022,4285.8,4285.7,7.922]
[1755787602133,0.022,4285.8,4285.7,10.25534111]
[1755787602333,0.022,4285.8,4285.7,10.54664111]
[1755787602533,0.022,4285.8,4285.7,13.49538074]
[1755787603134,0.022,4285.8,4285.7,12.73428074]
[1755787603450,0.022,4285.8,4285.7,10.40093963]
[1755787603651,0.022,4285.8,4285.7,10.28413963]
[1755787604436,0.3091,4285.8,4285.7,7.922]
[1755787604736,0.0212,4285.8,4285.7,7.922]
[1755787605466,0.2962,4285.8,4285.7,7.922]
[1755787605633,0.0212,4285.8,4285.7,20.97029948]
[1755787605831,0.0212,4285.8,4285.7,21.73139948]
[1755787606036,0.0212,4285.8,4285.7,24.21033911]
[1755787607072,0.4469,4289.2,4286.6,0.66]
[1755787607282,0.4469,4289.2,4287.8,3.66]
[1755787607591,0.4469,4289.2,4288.2,0.66]
[1755787607883,0.4669,4288.8,4288.5,0.66]
[1755787608101,0.02,4288.8,4288.3,3.0]
[1755787608384,0.02,4288.8,4288.4,1.7518]
[1755787608898,0.02,4288.8,4288.6,0.66]
[1755787609480,0.2767,4288.7,4288.6,0.66]
[1755787610307,0.02,4288.8,4288.6,0.66]
[1755787610482,0.02,4288.8,4288.7,3.68331708]
[1755787610786,0.02,4288.8,4288.7,5.93398929]
[1755787610980,0.295,4288.8,4288.7,3.66]
[1755787611692,0.02,4288.8,4288.7,0.66]
[1755787611900,0.02,4288.8,4288.7,3.66]
[1755787612208,0.02,4288.8,4288.7,6.77612598]
[1755787612497,0.02,4289.8,4289.6,2.33117704]
[1755787612800,0.02,4289.8,4289.7,10.53846534]
[1755787613009,0.02,4289.8,4289.7,7.916]
[1755787613558,0.02,4289.8,4289.7,3.66]
[1755787613904,0.02,4289.8,4289.7,8.70041165]
[1755787614076,0.02,4289.8,4289.7,8.96544117]
[1755787614256,0.02,4289.8,4289.7,7.916]
[1755787615799,0.02,4289.8,4289.7,11.00826534]
[1755787615959,0.022,4289.8,4289.7,7.916]
[1755787617401,0.02,4292.8,4289.9,0.66]
[1755787617708,0.02,4292.8,4289.7,8.2073]
[1755787617709,0.4469,4292.7,4291.1,3.66]
[1755787617993,0.4469,4292.7,4291.5,2.99018315]
[1755787618299,0.4469,4292.7,4291.3,3.0]
[1755787618300,0.4469,4292.7,4291.7,3.66]
[1755787618460,0.4469,4292.7,4291.7,3.8742421]
[1755787618773,0.02,4292.8,4291.7,3.8742421]
[1755787618774,0.02,4292.8,4291.7,16.91927945]
[1755787618960,0.02,4292.8,4291.7,20.03052508]
[1755787619488,0.02,4292.8,4291.7,17.8172461]
[1755787619670,0.02,4292.8,4292.7,5.98953618]
[1755787619988,0.02,4292.8,4292.7,10.45577828]
[1755787620189,0.02,4292.8,4292.7,10.74707828]
[1755787620487,0.02,4292.8,4292.7,12.89497581]
[1755787620675,0.02,4292.8,4292.7,13.57894283]
[1755787621190,0.02,4292.8,4292.7,10.48830665]
[1755787621357,0.02,4292.8,4292.7,13.69583681]
[1755787621559,0.02,4293.8,4292.8,3.0]
[1755787621758,0.02,4293.8,4293.7,16.99525201]
[1755787621959,0.02,4293.8,4293.7,19.13051937]
[1755787622203,0.02,4293.8,4293.7,3.874261]
[1755787622515,0.02,4293.8,4293.7,10.47654457]
[1755787622658,0.02,4293.8,4293.7,19.59970649]
[1755787622980,0.02,4293.8,4293.7,21.20074612]
[1755787623905,0.02,4293.8,4293.7,7.91]
[1755787624061,0.7402,4293.8,4293.7,4.42736771]
[1755787624913,0.7402,4293.8,4293.3,4.248]
[1755787625072,0.4452,4293.7,4293.1,4.248]
[1755787625271,0.4452,4293.7,4292.9,4.248]
[1755787625272,0.2767,4293.2,4292.9,4.248]
[1755787625479,0.2767,4293.2,4292.9,4.8521]
[1755787625675,0.4435,4293.1,4292.9,4.248]
[1755787625870,0.7202,4293.0,4292.1,1.793]
[1755787626094,0.7202,4293.0,4292.2,4.248]
[1755787626282,0.7202,4293.0,4292.1,1.96854418]
[1755787626486,0.7202,4293.0,4292.3,4.248]
[1755787626684,0.2784,4293.0,4292.3,4.86965442]
[1755787626871,0.2784,4293.0,4292.4,0.02329699]
[1755787627072,0.02,4293.8,4292.5,4.247]
[1755787627274,0.02,4293.8,4292.6,3.6832959]
[1755787627474,0.02,4293.8,4292.8,3.66]
[1755787627707,0.02,4293.8,4293.0,3.66]
[1755787627907,0.02,4293.8,4293.2,3.66]
[1755787628211,0.02,4293.8,4293.4,3.66]
[1755787628425,0.275,4293.5,4293.0,3.0]
[1755787628578,0.46781442,4293.4,4292.3,0.001]
[1755787628778,0.4452,4293.4,4292.3,0.02429753]
[1755787629004,0.02261442,4293.3,4292.3,0.02429753]
[1755787629313,1.792,4293.7,4292.3,0.3442817]
[1755787629496,1.792,4293.7,4292.4,0.66]
[1755787629814,1.792,4293.7,4292.6,0.66]
[1755787630012,0.0192,4293.8,4292.6,0.66]
[1755787630408,0.0192,4293.8,4292.6,3.66]
[1755787630612,0.0192,4293.8,4292.7,0.81379536]
[1755787630811,0.0192,4293.8,4292.9,0.66]
[1755787631012,0.2581,4292.8,4292.7,4.245]
[1755787631204,0.464,4293.7,4292.7,0.21417371]
[1755787631407,0.02261442,4293.6,4292.8,0.21417371]
[1755787631593,0.1576,4293.5,4292.9,0.21417371]
[1755787631795,0.3077,4293.0,4292.3,0.661]
[1755787632008,0.1591,4292.9,4292.4,0.2143366]
[1755787632340,0.1591,4292.9,4292.3,0.001]
[1755787632341,0.3063,4292.5,4292.3,0.001]
[1755787632820,0.1606,4292.4,4292.3,0.001]
[1755787632987,0.3048,4292.4,4292.3,0.21558136]
[1755787633410,0.4669,4292.4,4292.3,0.001]
[1755787634698,0.3048,4292.4,4292.3,0.21616097]
[1755787635224,0.4669,4292.4,4292.3,0.001]
[1755787635394,0.3048,4292.4,4292.3,0.001]
[1755787635721,0.4669,4292.4,4292.3,0.001]
[1755787636918,0.81361621,4292.4,4292.3,0.001]
[1755787637121,8.07923063,4292.4,4292.3,0.001]
[1755787637299,38.55366745,4292.4,4292.3,0.001]
[1755787637495,38.55366745,4292.4,4291.8,0.02]
[1755787637709,3.0,4292.2,4291.8,0.02]
[1755787637904,30.0,4291.8,4291.4,0.001]
[1755787638145,8.768673,4291.7,4291.4,0.001]
[1755787638429,33.865673,4291.6,4291.4,0.001]
[1755787638637,40.56080046,4291.5,4291.4,0.001]
[1755787638844,39.08937362,4291.5,4291.4,0.001]
[1755787638995,36.75918604,4291.5,4291.4,0.001]
[1755787639195,43.33237362,4291.5,4291.4,0.001]
[1755787639608,3.66,4291.4,4290.8,0.02]
[1755787639814,2.99051341,4290.9,4290.8,0.02]
[1755787640015,42.45831387,4290.9,4290.8,0.02]
[1755787640214,3.66,4290.2,4288.8,0.02]
[1755787640441,3.0,4290.0,4288.8,0.02]
[1755787640619,3.0,4289.8,4288.8,0.02]
[1755787640847,3.0,4289.6,4288.8,0.02]
[1755787641144,3.0,4289.4,4288.8,0.02]
[1755787641338,3.0,4289.2,4288.8,0.02]
[1755787641628,1.81561442,4289.1,4288.8,0.02]
[1755787642137,1.793,4289.1,4288.8,0.02]
[1755787642891,0.02261442,4289.0,4288.8,0.02]
[1755787643092,0.464,4288.9,4288.8,0.02]
[1755787643299,30.7192,4288.9,4288.8,0.02]
[1755787643492,37.9622,4288.9,4288.8,0.02]
[1755787644621,3.0,4288.8,4287.8,0.02]
[1755787644834,0.3093,4287.9,4287.8,0.02]
[1755787644997,35.1023,4287.9,4287.8,0.02]
[1755787645334,9.4454,4287.9,4287.8,0.02]
[1755787645518,0.66,4287.7,4285.8,0.02]
[1755787645717,3.0,4287.5,4285.8,0.02]
[1755787645916,30.0,4287.4,4285.8,0.02]
[1755787646221,3.0,4287.3,4285.8,0.02]
[1755787646426,3.0,4287.1,4285.8,0.02]
[1755787646597,1.81561442,4287.0,4285.8,0.02]
[1755787647025,30.0,4286.9,4285.8,0.02]
[1755787647334,1.793,4287.0,4286.1,0.4436]
[1755787647517,0.02261442,4286.9,4286.1,0.4436]
[1755787649239,1.793,4287.0,4286.8,0.021]
[1755787649401,0.02261442,4286.9,4286.8,0.021]
[1755787649733,34.73061442,4286.9,4286.8,0.021]
[1755787649899,34.244,4286.9,4286.8,0.021]
[1755787650102,4.244,4286.9,4286.8,0.021]
[1755787650309,4.26661442,4286.9,4286.8,0.021]
[1755787651598,4.5021,4286.9,4286.8,0.021]
[1755787651935,7.98671442,4286.9,4286.8,0.021]
[1755787652134,7.9633,4286.9,4286.8,0.021]
[1755787652301,1.793,4287.0,4286.8,0.021]
[1755787652500,4.244,4287.3,4286.8,0.021]
[1755787652729,0.464,4288.4,4286.9,0.7513]
[1755787653032,1.794,4287.8,4286.9,0.7513]
[1755787653234,1.794,4287.8,4286.8,0.021]
[1755787653235,0.02261442,4287.7,4286.8,0.021]
[1755787653804,6.038,4287.9,4286.9,0.4436]
[1755787653999,1.794,4287.9,4286.9,0.4436]
[1755787654241,0.02261442,4287.8,4287.0,0.68332633]
[1755787654402,4.244,4288.3,4287.7,0.3077]
[1755787654607,0.02261442,4288.2,4287.7,0.3077]
[1755787655239,0.02261442,4288.2,4286.8,0.021]
[1755787655240,3.0,4288.4,4286.8,0.021]
[1755787655469,0.02261442,4288.3,4286.9,0.66]
[1755787655603,3.0,4288.2,4287.0,0.02332633]
[1755787655803,0.02261442,4288.1,4287.0,0.4436]
[1755787656620,30.0,4288.0,4286.8,0.021]
[1755787656820,0.02261442,4287.9,4286.8,0.021]
[1755787657022,1.81661442,4287.9,4286.8,0.021]
[1755787657221,3.0,4287.7,4286.8,0.021]
[1755787657423,3.0,4287.5,4286.8,0.021]
[1755787657735,3.0,4287.3,4286.8,0.021]
[1755787658034,0.02261442,4287.2,4286.8,0.021]
[1755787658731,0.2582,4286.9,4286.8,0.021]
[1755787658922,0.28081442,4286.9,4286.8,0.021]
[1755787659118,0.74261442,4286.9,4286.8,0.021]
[1755787659334,7.98561442,4286.9,4286.8,0.021]
[1755787659529,3.0,4286.9,4286.8,0.021]
[1755787659730,0.02261442,4287.0,4286.8,0.7609]
[1755787660044,3.02261442,4287.7,4286.9,0.4461]
[1755787660248,0.02261442,4287.7,4286.9,0.4461]
[1755787660540,1.794,4287.9,4286.9,0.4461]
[1755787660711,4.26561442,4287.8,4286.9,0.4461]
[1755787660908,3.0,4287.7,4286.9,0.4461]
[1755787661136,0.02261442,4287.6,4286.9,0.4461]
[1755787661355,0.02261442,4287.6,4286.8,0.021]
[1755787661653,4.243,4287.5,4286.8,0.021]
[1755787661838,0.4638,4288.8,4286.9,0.46942687]
[1755787662143,3.0,4288.6,4287.4,0.2938]
[1755787662312,0.02261442,4288.5,4287.4,0.2938]
[1755787662915,4.242,4288.4,4287.4,0.2938]
[1755787663110,3.02261442,4288.3,4286.9,0.4461]
[1755787663545,3.48641442,4288.3,4286.8,0.021]
[1755787663847,3.0,4288.1,4286.8,0.021]
[1755787664049,0.02261442,4288.0,4286.8,0.021]
[1755787664244,1.794,4287.9,4286.8,0.021]
[1755787664445,0.02261442,4287.8,4286.8,0.021]
[1755787664847,6.036,4287.9,4286.8,0.021]
[1755787665347,1.794,4287.9,4286.8,0.021]
[1755787665549,4.242,4287.8,4286.8,0.021]
[1755787665921,0.02261442,4287.7,4286.8,0.021]
[1755787666851,3.0,4287.5,4286.8,0.021]
[1755787667054,4.1180131,4287.7,4286.8,0.021]
[1755787667055,0.6542131,4287.4,4286.8,0.021]
[1755787667231,0.13065082,4287.3,4286.8,0.021]
[1755787667431,4.241,4287.5,4286.9,0.4461]
[1755787667828,4.241,4287.7,4286.9,0.4461]
[1755787668030,0.02261442,4287.6,4286.9,0.4461]
[1755787669242,0.15345996,4287.6,4286.9,0.4461]
[1755787669442,0.02261442,4287.6,4286.9,0.4461]
[1755787669647,0.02461442,4287.7,4286.9,0.4461]
[1755787670156,0.002,4287.7,4286.9,0.4461]
[1755787670360,0.02461442,4287.7,4286.9,0.4461]
[1755787670861,0.2582,4287.0,4286.8,0.021]
[1755787671066,30.74261442,4286.9,4286.8,0.021]
[1755787671240,34.57108405,4286.9,4286.8,0.021]
[1755787671637,38.34928405,4286.9,4285.5,0.40760814]
[1755787671837,3.0,4286.7,4285.2,0.001]
[1755787672160,3.0,4286.5,4285.2,0.001]
[1755787672356,0.87375058,4286.4,4285.2,0.001]
[1755787672564,3.0,4286.2,4285.2,0.001]
[1755787672757,0.6556769,4286.1,4285.2,0.001]
[1755787673058,4.37084554,4286.0,4285.2,0.001]
[1755787673247,0.6556769,4285.9,4285.2,0.001]
[1755787673443,0.13084554,4285.8,4285.2,0.001]
[1755787673622,0.02261442,4285.7,4285.2,0.001]
[1755787674241,4.26261442,4285.7,4285.2,0.001]
[1755787674643,1.794,4286.3,4285.2,0.001]
[1755787674846,0.37145269,4286.2,4285.2,0.001]
[1755787675027,0.2862,4285.3,4285.2,0.001]
[1755787675227,9.4519394,4285.3,4285.2,0.001]
[1755787675479,10.63592802,4285.3,4285.2,0.001]
[1755787675670,6.3956181,4285.3,4285.2,0.001]
[1755787675827,6.3948181,4285.3,4285.2,0.001]
[1755787676032,10.6348181,4285.3,4285.2,0.001]
[1755787676261,40.6348181,4285.3,4285.2,0.001]
[1755787676448,3.0,4285.2,4283.3,0.4461]
[1755787676760,0.2862,4284.9,4283.3,0.4461]
[1755787676962,0.30881442,4284.9,4283.3,0.4461]
[1755787677126,34.12092477,4284.9,4282.8,0.02]
[1755787677327,36.93439485,4284.9,4282.8,0.02]
[1755787677563,38.8406181,4284.9,4282.8,0.02]
[1755787677765,38.8406181,4284.9,4283.4,0.4461]
[1755787677927,38.8406181,4284.9,4282.8,0.4661]
[1755787678334,34.6006181,4284.9,4282.8,0.4661]
[1755787678727,34.6006181,4284.9,4283.2,0.4461]
[1755787678728,38.8406181,4284.9,4283.2,0.4461]
[1755787679057,34.6006181,4284.9,4283.2,0.4461]
[1755787679259,34.6006181,4284.9,4284.3,0.001]
[1755787679427,38.3768181,4284.9,4284.3,0.001]
[1755787679628,38.15912413,4284.9,4284.3,0.001]
[1755787679864,38.83973287,4284.9,4284.3,0.001]
[1755787680660,38.37493287,4284.9,4284.3,0.001]
[1755787680863,38.83873287,4284.9,4284.3,0.001]
[1755787681362,39.49873287,4284.9,4284.3,0.001]
[1755787681565,35.25973287,4284.9,4284.3,0.001]
[1755787681764,39.49973287,4284.9,4284.3,0.001]
[1755787682480,41.83350962,4284.9,4284.3,0.001]
[1755787683335,41.83249569,4284.9,4284.3,0.001]
[1755787683890,34.13486439,4284.9,4284.3,0.001]
[1755787684034,32.42823052,4284.9,4284.3,0.001]
[1755787684232,36.036,4284.9,4284.3,0.001]
[1755787684645,34.796,4284.9,4284.3,0.001]
[1755787684844,39.3222,4284.9,4284.3,0.001]
[1755787685859,35.71095521,4284.9,4284.3,0.001]
[1755787686039,39.035,4284.9,4284.3,0.001]
[1755787686238,9.036,4284.9,4284.3,0.001]
[1755787686866,1.796,4284.9,4284.3,0.001]
[1755787687068,4.239,4284.9,4284.8,0.7609]
[1755787687369,4.26161442,4284.9,4284.8,0.7609]
[1755787687574,4.26161442,4284.9,4284.8,0.021]
[1755787687746,37.57771442,4284.9,4284.8,0.021]
[1755787687945,37.5551,4284.9,4284.8,0.021]
[1755787688145,3.0,4284.9,4284.8,0.021]
[1755787688374,7.239,4284.9,4284.8,0.3316]
[1755787688574,7.239,4284.9,4284.8,0.7828]
[1755787688736,3.0,4284.9,4284.8,0.3316]
[1755787688937,7.239,4284.9,4284.8,0.3316]
[1755787689249,7.239,4284.9,4284.8,0.021]
[1755787689455,7.239,4284.9,4284.8,0.3316]
[1755787689974,7.239,4284.9,4284.8,0.7828]
[1755787690367,7.239,4284.9,4284.8,0.3316]
[1755787690764,3.0,4284.9,4284.8,0.3316]
[1755787690970,3.0,4284.9,4284.8,0.7828]
[1755787691147,0.002,4285.2,4284.8,0.7828]
[1755787691339,0.002,4285.2,4284.9,0.47453776]
[1755787691566,0.002,4285.2,4285.1,0.3106]
[1755787692190,0.002,4285.2,4285.1,0.7618]
[1755787693868,0.002,4285.2,4284.8,0.021]
[1755787694178,4.238,4285.1,4284.8,0.021]
[1755787694349,0.02261442,4285.0,4284.8,0.021]
[1755787694879,3.02261442,4285.0,4284.8,0.021]
[1755787695963,0.2957,4284.9,4284.8,0.021]
[1755787696277,33.003,4284.9,4284.8,0.021]
[1755787696448,33.35064774,4284.9,4284.8,0.021]
[1755787696777,33.85119956,4284.9,4284.8,0.021]
[1755787696984,33.35064774,4284.9,4284.8,0.021]
[1755787697470,33.85110545,4284.9,4284.8,0.021]
[1755787697851,34.51110545,4284.9,4284.8,0.021]
[1755787698053,37.2870822,4284.9,4284.8,0.021]
[1755787699597,34.95250545,4284.9,4284.8,0.021]
[1755787699803,39.18850545,4284.9,4284.8,0.021]
[1755787700102,41.5222822,4284.9,4284.8,0.021]
[1755787700263,11.5222822,4284.9,4284.8,0.021]
[1755787700467,11.52330123,4284.9,4284.8,0.021]
[1755787700687,37.28730123,4284.9,4284.8,0.021]
[1755787700898,41.52330123,4284.9,4284.8,0.021]
[1755787701080,37.28730123,4284.9,4284.8,0.021]
[1755787701286,5.33399463,4284.5,4284.3,0.001]
[1755787701601,42.4235201,4284.4,4284.3,0.001]
[1755787701761,42.53234493,4284.4,4284.3,0.001]
[1755787701967,2.99426704,4284.0,4282.8,0.02]
[1755787702161,5.99432152,4283.9,4282.8,0.02]
[1755787702388,37.87131659,4283.9,4282.8,0.02]
[1755787702904,3.66,4283.0,4282.8,0.02]
[1755787703113,40.87999559,4282.9,4282.8,0.02]
[1755787703401,41.29958117,4282.9,4282.8,0.02]
[1755787704606,43.63444773,4282.9,4282.8,0.02]
[1755787704902,3.66,4282.0,4281.6,0.001]
[1755787705107,36.64478695,4281.9,4281.6,0.001]
[1755787705306,40.85717253,4281.9,4281.6,0.001]
[1755787705883,41.29937253,4281.9,4281.6,0.001]
[1755787706092,43.63478437,4281.9,4281.6,0.001]
[1755787706277,37.06437253,4281.9,4281.6,0.001]
[1755787706604,40.85717253,4281.9,4281.6,0.001]
[1755787706765,39.39978437,4281.9,4281.6,0.001]
[1755787707299,43.63478437,4281.9,4281.6,0.001]
[1755787707701,43.63315595,4281.9,4281.6,0.001]
[1755787708273,2.99552093,4281.7,4281.6,0.001]
[1755787708600,42.79767946,4281.7,4281.6,0.001]
[1755787708813,47.45106504,4281.7,4281.6,0.001]
[1755787709477,17.45106504,4281.7,4281.6,0.001]
[1755787709996,47.45106504,4281.7,4281.6,0.001]
[1755787710318,0.66,4281.0,4280.8,0.021]
[1755787710537,39.82311276,4280.9,4280.8,0.021]
[1755787711003,39.693,4280.9,4280.8,0.021]
[1755787711196,39.692,4280.9,4280.8,0.021]
[1755787711509,39.032,4280.9,4280.8,0.3316]
[1755787711714,39.032,4280.9,4280.8,0.7828]
[1755787712077,39.032,4280.9,4280.8,0.021]
[1755787712794,42.34405739,4280.9,4280.8,0.021]
[1755787712974,40.13760935,4280.9,4280.8,0.021]
[1755787713175,40.0081,4280.9,4280.8,0.021]
[1755787713369,42.34405739,4280.9,4280.8,0.021]
[1755787713619,43.1299769,4280.9,4280.8,0.021]
[1755787713775,43.6264642,4280.9,4280.8,0.021]
[1755787714078,2.33628483,4280.3,4280.2,0.001]
[1755787714278,37.57371442,4280.3,4280.2,0.001]
[1755787714472,37.5511,4280.3,4280.2,0.001]
[1755787715006,39.88738483,4280.3,4280.2,0.001]
[1755787715207,40.98838483,4280.3,4280.2,0.001]
[1755787715508,2.99644859,4280.0,4279.9,0.001]
[1755787715710,43.20756261,4280.0,4279.9,0.001]
[1755787715910,43.18494819,4280.0,4279.9,0.001]
[1755787716277,43.50234819,4280.0,4279.9,0.001]
[1755787716605,0.66,4279.1,4278.8,0.02]
[1755787716815,3.66,4278.9,4278.8,0.02]
[1755787716971,0.66,4278.8,4277.8,0.02]
[1755787717304,0.66,4278.5,4277.8,0.02]
[1755787717505,3.66,4278.3,4277.8,0.02]
[1755787717705,3.0,4278.1,4277.8,0.02]
[1755787717907,3.0,4277.9,4277.8,0.02]
[1755787718113,4.25661442,4277.9,4277.8,0.3126]
[1755787718324,7.25661442,4277.9,4277.8,0.3126]
[1755787718618,7.234,4277.9,4277.8,0.3126]
[1755787718823,3.0,4277.9,4277.8,0.3126]
[1755787718987,3.02261442,4277.9,4277.8,0.7722]
[1755787719184,7.25661442,4277.9,4277.8,0.7722]
[1755787719417,7.234,4277.9,4277.8,0.7722]
[1755787720631,7.234,4277.9,4277.8,0.3126]
[1755787720836,7.234,4277.9,4277.8,0.7722]
[1755787721335,7.234,4277.9,4277.8,0.02]
[1755787721501,7.234,4277.9,4277.0,0.4596]
[1755787721502,3.0,4277.8,4277.0,0.4596]
[1755787721702,3.0,4277.6,4277.0,0.4596]
[1755787722033,1.797,4278.2,4277.7,0.2926]
[1755787722232,3.0,4278.0,4277.8,0.4596]
[1755787722446,3.0,4277.8,4275.9,1.97726522]
[1755787722652,3.0,4277.6,4275.9,1.97726522]
[1755787722851,3.0,4277.4,4275.9,1.97726522]
[1755787723002,3.0,4277.2,4275.9,1.97726522]
[1755787723217,4.25661442,4277.2,4275.9,1.798]
[1755787723544,7.25581442,4277.2,4277.1,0.7532]
[1755787723759,7.234,4277.2,4277.1,0.7532]
[1755787724763,3.0,4277.2,4277.1,0.7532]
[1755787725058,7.25481442,4277.2,4277.1,0.7532]
[1755787725358,3.0,4277.2,4277.1,0.7532]
[1755787725526,1.798,4278.0,4277.1,0.7532]
[1755787725732,4.234,4277.9,4277.1,0.2936]
[1755787726066,0.02181442,4277.8,4277.2,0.4596]
[1755787726369,4.233,4277.8,4277.7,0.2926]
[1755787726571,7.25481442,4277.8,4277.7,0.7522]
[1755787726735,1.798,4278.4,4277.7,0.7522]
[1755787727070,1.798,4279.2,4277.8,0.4596]
[1755787727366,4.233,4279.1,4277.9,0.02337595]
[1755787727547,0.72483542,4280.0,4277.9,0.02337595]
[1755787727548,4.25481442,4279.0,4277.9,0.02337595]
[1755787727873,1.798,4280.1,4278.9,0.2926]
[1755787728075,4.25481442,4280.0,4278.9,0.2926]
[1755787728278,7.233,4279.9,4279.0,0.4596]
[1755787728557,0.02181442,4279.8,4279.0,0.4596]
[1755787728763,3.0,4279.9,4279.7,0.2926]
[1755787728935,0.02181442,4279.8,4279.7,0.2926]
[1755787729142,0.02181442,4279.8,4278.8,0.4596]
[1755787729341,1.798,4280.4,4279.7,0.2926]
[1755787729565,3.0,4280.2,4279.7,0.2926]
[1755787729733,0.02181442,4280.1,4279.7,0.2926]
[1755787729930,4.232,4280.0,4279.8,0.4596]
[1755787730131,3.02181442,4279.9,4279.8,0.4596]
[1755787730531,1.798,4280.4,4279.8,0.7522]
[1755787730754,4.25381442,4280.3,4279.8,0.7522]
[1755787730952,3.02181442,4280.2,4279.9,0.4596]
[1755787731160,3.02181442,4280.2,4278.5,0.66]
[1755787731383,3.02181442,4280.2,4280.1,0.2926]
[1755787731871,3.02181442,4280.2,4280.1,0.7522]
[1755787732051,0.02181442,4280.2,4280.1,0.7522]
[1755787732252,3.0,4280.2,4280.1,0.2926]
[1755787732453,3.02181442,4280.2,4280.1,0.2926]
[1755787732654,1.798,4280.4,4280.1,0.7522]
[1755787732956,2.29801911,4281.0,4280.2,0.4596]
[1755787733157,0.702739,4281.5,4280.2,0.4596]
[1755787733458,3.0,4281.3,4279.5,0.4596]
[1755787733783,3.0,4281.1,4279.2,2.2576]
[1755787733946,3.0,4280.9,4279.2,1.798]
[1755787734151,0.4472,4281.2,4279.2,1.798]
[1755787734152,4.231,4280.8,4279.3,0.4596]
[1755787737206,4.25081442,4280.4,4279.3,0.4596]
[1755787737373,4.229,4280.4,4279.3,0.4596]
[1755787737580,1.798,4280.6,4279.3,0.4596]
[1755787737789,0.02181442,4280.3,4279.3,0.4596]
[1755787738511,0.02181442,4280.3,4279.0,0.4596]